[Event "ESP-chT Honor Division 2022"]
[Site "Linares"]
[Date "2022.09.20"]
[Round "4.11"]
[White "Rodriguez Redondo, Adhara"]
[Black "Macias Pino, Diego"]
[Result "0-1"]
[ECO "C50"]
[WhiteElo "2112"]
[BlackElo "2381"]
[Annotator "ChessBase"]
[PlyCount "152"]
[EventDate "2022.09.17"]
[EventType "team-tourn"]
[EventCountry "ESP"]
[SourceTitle "playchess.com"]
[Source "ChessBase"]
[SourceQuality "1"]
[TimeControl "5400+30"]

1. e4 {[%emt 0:00:19]} e5 {[%emt 0:00:14]} 2. Nf3 {[%emt 0:00:18]} Nc6 {[%emt 0:00:27]} 3. Bc4 {[%emt 0:00:17]} Bc5 {[%emt 0:00:08]} 4. O-O {[%emt 0:02:04]} Nf6 {[%emt 0:00:05]} 5. d3 {[%emt 0:00:03]} d6 {[%emt 0:00:09]} 6. c3 {[%emt 0:01:25]} a6 {[%emt 0:00:05]} 7. a4 {[%emt 0:00:29]} Ba7 {[%emt 0:00:15]} 8. Re1 {[%emt 0:00:33]} h6 {[%emt 0:00:32]} 9. Nbd2 {[%emt 0:00:15]} g5 {[%emt 0:02:09]} 10. b4 {[%emt 0:00:06]} Ng4 {[%emt 0:03:27]} 11. Rf1 {[%emt 0:12:24]} Qf6 {[%emt 0:05:35]} 12. Qe2 {[%emt 0:06:07]} Qg7 {[%emt 0:00:31]} 13. Nb3 {[%emt 0:07:37]} O-O {[%emt 0:03:40]} 14. Ne1 {[%emt 0:09:00]} Bd7 {[%emt 0:09:25]} 15. Nc2 {[%emt 0:14:43]} Ne7 {[%emt 0:01:24]} 16. d4 {[%emt 0:06:03]} Ng6 {[%emt 0:02:06]} 17. b5 {[%emt 0:06:21]} axb5 {[%emt 0:02:48]} 18. axb5 {[%emt 0:00:07]} Nf6 {[%emt 0:00:54]} 19. Nb4 {[%emt 0:05:35]} Rfe8 {[%emt 0:02:43]} 20. d5 {[%emt 0:10:09]} Nf4 {[%emt 0:01:35]} 21. Qc2 {[%emt 0:03:08]} Qg6 {[%emt 0:07:28]} 22. Be3 {[%emt 0:01:29]} Bb6 {[%emt 0:00:32]} 23. Bxb6 {[%emt 0:04:17]} cxb6 {[%emt 0:00:09]} 24. f3 {[%emt 0:01:03]} g4 {[%emt 0:01:49]} 25. Rxa8 {[%emt 0:00:30]} Rxa8 {[%emt 0:00:13]} 26. Nd3 {[%emt 0:00:52]} gxf3 {[%emt 0:02:48]} 27. Nxf4 {[%emt 0:00:47]} exf4 {[%emt 0:00:02]} 28. Rxf3 {[%emt 0:01:37]} Qxe4 {[%emt 0:00:22]} 29. Qxe4 {[%emt 0:01:11]} Nxe4 {[%emt 0:00:03]} 30. Rxf4 {[%emt 0:00:48]} Nxc3 {[%emt 0:00:36]} 31. Rf6 {[%emt 0:01:16]} Bxb5 {[%emt 0:06:05]} 32. Bxb5 {[%emt 0:00:05]} Nxb5 {[%emt 0:00:03]} 33. Rxh6 {[%emt 0:00:11]} Re8 {[%emt 0:00:43]} 34. Nd2 {[%emt 0:01:58]} Re5 {[%emt 0:00:16]} 35. Nc4 {[%emt 0:00:19]} Rxd5 {[%emt 0:00:17]} 36. Nxb6 {[%emt 0:00:06]} Rf5 {[%emt 0:04:29]} 37. Nc8 {[%emt 0:02:21]} Kg7 {[%emt 0:00:17]} 38. Rh3 {[%emt 0:00:36]} d5 {[%emt 0:01:04]} 39. Rd3 {[%emt 0:01:22]} d4 {[%emt 0:00:45]} 40. Nb6 {[%emt 0:01:52]} Rc5 {[%emt 0:05:29]} 41. Kf2 {[%emt 0:00:32]} Rf5+ {[%emt 0:02:32]} 42. Ke2 {[%emt 0:00:43]} Kf6 {[%emt 0:00:52]} 43. g4 {[%emt 0:00:27]} Re5+ {[%emt 0:00:49]} 44. Kf3 {[%emt 0:00:10]} Ke6 {[%emt 0:03:26]} 45. h4 {[%emt 0:00:14]} Re1 {[%emt 0:00:35]} 46. h5 {[%emt 0:00:49]} Kf6 {[%emt 0:01:05]} 47. Nd7+ {[%emt 0:00:48]} Kg5 {[%emt 0:00:14]} 48. Nc5 {[%emt 0:00:31]} Rf1+ {[%emt 0:01:47]} 49. Kg2 {[%emt 0:00:30]} Rf4 {[%emt 0:00:19]} 50. Nxb7 {[%emt 0:00:29]} Rxg4+ {[%emt 0:00:17]} 51. Kf3 {[%emt 0:00:21]} Kxh5 {[%emt 0:01:54]} 52. Nd8 {[%emt 0:00:29]} f5 {[%emt 0:08:58]} 53. Ne6 {[%emt 0:00:23]} Re4 {[%emt 0:00:46]} 54. Nc5 {[%emt 0:00:14]} Re5 {[%emt 0:01:03]} 55. Nd7 {[%emt 0:00:59]} Re7 {[%emt 0:00:38]} 56. Nc5 {[%emt 0:00:31]} Kg5 {[%emt 0:00:35]} 57. Nb3 {[%emt 0:00:24]} Rd7 {[%emt 0:02:39]} 58. Nc5 {[%emt 0:00:29]} Rd6 {[%emt 0:00:42]} 59. Nb3 {[%emt 0:00:15]} f4 {[%emt 0:02:03]} 60. Nc5 {[%emt 0:00:33]} Kf5 {[%emt 0:00:08]} 61. Rb3 {[%emt 0:00:44]} Nc3 {[%emt 0:00:56]} 62. Ra3 {[%emt 0:00:40]} d3 {[%emt 0:00:39]} 63. Nb3 {[%emt 0:00:27]} Rd5 {[%emt 0:03:24]} 64. Nd2 {[%emt 0:00:19]} Nb5 {[%emt 0:01:13]} 65. Ra8 {[%emt 0:00:26]} Nd4+ {[%emt 0:00:46]} 66. Kf2 {[%emt 0:00:20]} Re5 {[%emt 0:01:01]} 67. Rf8+ {[%emt 0:00:06]} Kg5 {[%emt 0:01:08]} 68. Rg8+ {[%emt 0:00:40]} Kh6 {[%emt 0:01:05]} 69. Rh8+ {[%emt 0:01:06]} Kg7 {[%emt 0:00:38]} 70. Rd8 {[%emt 0:00:08]} Re2+ {[%emt 0:00:15]} 71. Kf1 {[%emt 0:00:13]} Rxd2 {[%emt 0:00:29]} 72. Rxd4 {[%emt 0:00:01]} f3 {[%emt 0:00:03]} 73. Rg4+ {[%emt 0:01:42]} Kh6 {[%emt 0:00:15]} 74. Rf4 {[%emt 0:00:27]} Ra2 {[%emt 0:00:29]} 75. Rxf3 {[%emt 0:00:36]} Ra1+ {[%emt 0:00:06]} 76. Kf2 {[%emt 0:00:28]} d2 {[%emt 0:00:02]} 0-1

[Event "ESP-chT Honor Division 2022"]
[Site "Linares"]
[Date "2022.09.20"]
[Round "4.12"]
[White "Garcia Martin, Marta"]
[Black "Cano Sevilla, Ivan"]
[Result "1-0"]
[ECO "B30"]
[WhiteElo "2325"]
[BlackElo "2076"]
[Annotator "ChessBase"]
[PlyCount "129"]
[EventDate "2022.09.17"]
[EventType "team-tourn"]
[EventCountry "ESP"]
[SourceTitle "playchess.com"]
[Source "ChessBase"]
[SourceQuality "1"]
[TimeControl "5400+30"]

1. e4 {[%emt 0:00:54]} c5 {[%emt 0:00:01]} 2. Nf3 {[%emt 0:00:06]} Nc6 {[%emt 0:00:03]} 3. c3 {[%emt 0:00:11]} g6 {[%emt 0:01:49]} 4. d4 {[%emt 0:00:45]} cxd4 {[%emt 0:00:13]} 5. cxd4 {[%emt 0:00:04]} d6 {[%emt 0:00:40]} 6. d5 {[%emt 0:13:27]} Nb8 {[%emt 0:00:37]} 7. Nc3 {[%emt 0:00:53]} Bg7 {[%emt 0:00:08]} 8. Be3 {[%emt 0:03:03]} Nf6 {[%emt 0:00:56]} 9. Be2 {[%emt 0:02:50]} Nbd7 {[%emt 0:02:42]} 10. O-O {[%emt 0:00:44]} O-O {[%emt 0:00:55]} 11. Nd4 {[%emt 0:21:03]} Nc5 {[%emt 0:02:19]} 12. f3 {[%emt 0:00:11]} a5 {[%emt 0:00:27]} 13. Rc1 {[%emt 0:03:25]} Bd7 {[%emt 0:00:35]} 14. b3 {[%emt 0:04:35]} Qb6 {[%emt 0:13:46]} 15. Ndb5 {[%emt 0:04:51]} Bxb5 {[%emt 0:01:43]} 16. Nxb5 {[%emt 0:01:09]} Rfc8 {[%emt 0:00:46]} 17. a3 {[%emt 0:02:33]} Qd8 {[%emt 0:00:05]} 18. b4 {[%emt 0:08:50]} axb4 {[%emt 0:00:17]} 19. axb4 {[%emt 0:00:04]} Na6 {[%emt 0:06:35]} 20. Rxc8 {[%emt 0:07:32]} Rxc8 {[%emt 0:00:55]} 21. Na7 {[%emt 0:01:57]} Bh6 {[%emt 0:13:43]} 22. Bxh6 {[%emt 0:02:13]} Qb6+ {[%emt 0:00:03]} 23. Kh1 {[%emt 0:00:06]} Qxa7 {[%emt 0:00:03]} 24. Qd2 {[%emt 0:00:21]} Qb6 {[%emt 0:00:30]} 25. Rb1 {[%emt 0:04:42]} Qc7 {[%emt 0:02:50]} 26. b5 {[%emt 0:01:25]} Nb8 {[%emt 0:00:26]} 27. b6 {[%emt 0:01:57]} Qc2 {[%emt 0:00:43]} 28. Qe1 {[%emt 0:02:45]} Qa4 {[%emt 0:07:28]} 29. Bf1 {[%emt 0:10:56]} Nfd7 {[%emt 0:00:47]} 30. Qh4 {[%emt 0:01:23]} Qa2 {[%emt 0:03:52]} 31. Re1 {[%emt 0:00:07]} Nf6 {[%emt 0:00:40]} 32. e5 {[%emt 0:00:19]} dxe5 {[%emt 0:02:31]} 33. d6 {[%emt 0:01:05]} Qe6 {[%emt 0:06:03]} 34. dxe7 {[%emt 0:00:04]} Qxe7 {[%emt 0:06:12]} 35. Bg5 {[%emt 0:00:05]} Rc6 {[%emt 0:00:01]} 36. Ra1 {[%emt 0:00:36]} Qd6 {[%emt 0:05:40]} 37. Bxf6 {[%emt 0:01:00]} Qxf6 {[%emt 0:00:15]} 38. Qxf6 {[%emt 0:00:03]} Rxf6 {[%emt 0:00:01]} 39. Ra8 {[%emt 0:00:05]} Rxb6 {[%emt 0:00:15]} 40. Rxb8+ {[%emt 0:00:05]} Kg7 {[%emt 0:00:03]} 41. Kg1 {[%emt 0:00:29]} Rb2 {[%emt 0:00:51]} 42. Bc4 {[%emt 0:00:32]} f5 {[%emt 0:04:29]} 43. Re8 {[%emt 0:01:55]} b5 {[%emt 0:00:42]} 44. Bd5 {[%emt 0:00:30]} e4 {[%emt 0:02:45]} 45. fxe4 {[%emt 0:00:32]} fxe4 {[%emt 0:00:03]} 46. Rxe4 {[%emt 0:00:12]} h6 {[%emt 0:00:38]} 47. Re6 {[%emt 0:00:22]} Rb4 {[%emt 0:02:46]} 48. Rb6 {[%emt 0:00:39]} g5 {[%emt 0:00:58]} 49. Bc6 {[%emt 0:00:14]} Rb1+ {[%emt 0:00:02]} 50. Kf2 {[%emt 0:00:03]} b4 {[%emt 0:00:41]} 51. Be4 {[%emt 0:00:15]} Rb2+ {[%emt 0:00:01]} 52. Ke3 {[%emt 0:00:58]} Rb3+ {[%emt 0:00:36]} 53. Kd4 {[%emt 0:00:22]} Rb2 {[%emt 0:00:23]} 54. Rg6+ {[%emt 0:00:13]} Kf7 {[%emt 0:01:07]} 55. Rxh6 {[%emt 0:00:09]} b3 {[%emt 0:00:38]} 56. Rb6 {[%emt 0:01:36]} Kg7 {[%emt 0:02:29]} 57. Ke5 {[%emt 0:00:44]} g4 {[%emt 0:00:19]} 58. Kf4 {[%emt 0:00:37]} Rf2+ {[%emt 0:00:01]} 59. Kxg4 {[%emt 0:00:30]} b2 {[%emt 0:00:01]} 60. h4 {[%emt 0:00:28]} Re2 {[%emt 0:00:53]} 61. Kf5 {[%emt 0:00:32]} Kh7 {[%emt 0:01:31]} 62. g4 {[%emt 0:00:24]} Rf2+ {[%emt 0:00:47]} 63. Kg5+ {[%emt 0:00:08]} Kh8 {[%emt 0:00:23]} 64. h5 {[%emt 0:00:57]} Rd2 {[%emt 0:00:30]} 65. Rb8+ {[%emt 0:00:27]} 1-0

[Event "ESP-chT Honor Division 2022"]
[Site "Linares"]
[Date "2022.09.20"]
[Round "4.13"]
[White "Eljanov, Pavel"]
[Black "Fedoseev, Vladimir"]
[Result "1/2-1/2"]
[ECO "E10"]
[WhiteElo "2695"]
[BlackElo "2685"]
[Annotator "TA"]
[PlyCount "55"]
[EventDate "2022.09.17"]
[EventType "team-tourn"]
[EventCountry "ESP"]
[SourceTitle "playchess.com"]
[Source "ChessBase"]
[SourceQuality "1"]
[TimeControl "5400+30"]

{[%evp 23,24,0,19]} 1. d4 {[%emt 0:00:05]} Nf6 {[%emt 0:00:23]} 2. c4 {[%emt 0:00:17]} e6 {[%emt 0:00:07]} 3. Nf3 {[%emt 0:00:09]} d5 {[%emt 0:00:08]} 4. g3 {[%emt 0:00:35]} Bb4+ {[%emt 0:00:23]} 5. Bd2 {[%emt 0:00:17]} Be7 {[%emt 0:00:10]} 6. Bg2 {[%emt 0:00:35]} O-O {[%emt 0:01:25]} 7. O-O {[%emt 0:01:02]} Nbd7 {[%emt 0:01:13]} 8. Qc2 {[%emt 0:00:30]} c6 {[%emt 0:00:18]} 9. Bf4 {[%emt 0:00:26]} Nh5 {[%emt 0:00:15]} 10. Bc1 {[%emt 0:00:20]} Nhf6 {[%emt 0:00:37]} 11. Bf4 {[%emt 0:01:22] is cutting edge theory.} Nh5 {[%emt 0:00:19]} 12. Bc1 {[%emt 0:00:12]} Nhf6 {[%emt 0:00:06] [#]} {Predecessor:} 13. Nbd2 $146 {E09: Closed Catalan: Main Line: 7 Qc2 c6 8 Nbd2.} b6 14. b3 Bb7 15. Bb2 h6 16. Rad1 c5 17. cxd5 Nxd5 18. dxc5 Nxc5 19. Nc4 b5 20. Nce5 Qa5 21. a3 Rac8 22. b4 Qa4 23. Qb1 Na6 24. Rc1 Nb8 25. Nd4 a5 26. Rxc8 Rxc8 27. Be4 Nf6 28. Bxb7 {1-0 (23) Vachier Lagrave,M (2758)-Gledura,B (2652) Chess.com INT 2022} 1/2-1/2

[Event "ESP-chT Honor Division 2022"]
[Site "Linares"]
[Date "2022.09.20"]
[Round "4.14"]
[White "Tabatabaei, M. Amin"]
[Black "Jones, Gawain C B"]
[Result "1-0"]
[ECO "A48"]
[WhiteElo "2651"]
[BlackElo "2623"]
[Annotator "TA"]
[PlyCount "109"]
[EventDate "2022.09.17"]
[EventType "team-tourn"]
[EventCountry "ESP"]
[SourceTitle "playchess.com"]
[Source "ChessBase"]
[SourceQuality "1"]
[TimeControl "5400+30"]

{[%evp 11,109,14,11,12,11,7,1,-26,19,-9,5,0,29,0,0,0,0,0,16,0,15,16,15,15,8,7,5,16,33,27,53,17,39,13,13,8,33,27,39,32,28,32,31,28,21,21,51,8,10,12,47,0,0,0,0,0,0,0,0,0,0,0,0,3,268,0,173,173,172,156,565,565,565,557,555,547,558,558,599,599,597,597,29973,29974,29974,29975,29975,29976,29975,29976,29979,29980,29980,29981,29982,29983,29983,29984,29984,29985]} 1. d4 {[%emt 0:01:29]} Nf6 {[%emt 0:00:08]} 2. Nf3 {[%emt 0:00:05]} g6 {[%emt 0:00:07]} 3. Nbd2 {[%emt 0:00:06]} d5 {[%emt 0:00:40]} 4. b3 {[%emt 0:00:08]} Bg7 {[%emt 0:00:07]} 5. Bb2 {[%emt 0:00:05]} O-O {[%emt 0:01:02]} 6. e3 {[%emt 0:00:05]} Nbd7 {[%emt 0:01:19] BESTDEEP} 7. c4 {[%emt 0:00:48] 7.Be2 gains popularity. D04: Colle System.} c5 {[%emt 0:01:01] CPLX 2.0} 8. Rc1 {[%emt 0:07:18] CPLX 2.1 4 (Bf1-e2) (=2)} cxd4 {[%emt 0:07:57] [#]} 9. Nxd4 $146 {[%emt 0:15:49] MISS-Bb2xd4 27 (Bb2xd4) (=10). The position is equal.} ({Predecessor:} 9. Bxd4 b6 10. Be2 Bb7 11. O-O Re8 12. Ne5 Rc8 13. f4 Nxe5 14. fxe5 Ne4 15. Nxe4 dxe4 {0-1 (50) Magalhaes,J (1924)-Crespo de Oliveira,L (2110) Belo Horizonte 2010}) 9... Ne5 {[%emt 0:09:34] CPLX 2.2 45 (e7-e5) (=11)} (9... e5 $5 {[%cal Re5d4]} 10. N4f3 d4 $11) 10. c5 {[%emt 0:13:37] CPLX 2.4 28 (Bf1-e2) (=15)} Bg4 {[%emt 0:07:35] CPLX 2.3 14 (Ne5-c6) (=12)} 11. Qc2 {[%emt 0:02:24] CPLX 2.9 5 (f2-f3) (=13)} Ne4 {[%emt 0:06:51] CPLX 2.5 29 (Ne5-c6) (=15)} 12. f3 {[%emt 0:12:29] CPLX 3.6 29 (Nd2xe4) (=16)} Nxd2 {[%emt 0:01:39] EASY} 13. Qxd2 {[%emt 0:00:06] RECAPT} Bd7 {[%emt 0:01:07] CPLX 2.6} 14. Be2 {[%emt 0:00:32] CPLX 2.2} a6 {[%emt 0:05:05] CPLX 2.2 16 (Ne5-c6) (=12)} 15. O-O {[%emt 0:00:58] CPLX 2.3 16 (f3-f4) (=12)} Qc7 {[%emt 0:02:31] CPLX 2.3 15 (Ne5-c6) (=12)} 16. f4 {[%emt 0:04:50] CPLX 2.3} Nc6 {[%emt 0:02:32] BESTDEEP} 17. Bf3 {[%emt 0:01:34] BESTDEEP} e6 {[%emt 0:10:39] CPLX 2.6 0 (Nc6xd4) (=10)} 18. Ne2 {[%emt 0:08:11] BESTDEEP} Bxb2 {[%emt 0:10:45] CPLX 2.8} 19. Qxb2 {[%emt 0:00:09] RECAPT} Ne7 {[%emt 0:00:06] CPLX 2.9 17 (Ra8-c8) (=10)} 20. Rfd1 {[%emt 0:04:11] CPLX 2.8 6 (Qb2-f6) (=8)} Nf5 {[%emt 0:03:59] CPLX 2.8 26 (Bd7-b5) (=11)} 21. Kf2 {[%emt 0:00:10] CPLX 2.7 36 (g2-g4) (=10)} (21. g4 $5 {[%cal Rg4f5]} Nh4 22. Bh1 $11) 21... Bb5 {[%emt 0:01:28] CPLX 3.3 22 (Ra8-e8) (=12)} 22. Ng3 {[%emt 0:01:32] CPLX 4.3 26 (g2-g3) (=11)} Nxg3 {[%emt 0:07:32] CPLX 4.4} 23. hxg3 {[%emt 0:00:16] RECAPT} Rae8 {[%emt 0:01:30] CPLX 3.5 25 (f7-f5) (=12)} 24. Qf6 {[%emt 0:03:49] BESTDEEP} Qe7 {[%emt 0:02:09] CPLX 3.9 12 (Bb5-c6) (=12)} 25. Qxe7 {[%emt 0:00:17] CPLX 4.0} Rxe7 {[%emt 0:00:03] RECAPT} 26. e4 {[%emt 0:00:05] CPLX 2.1} dxe4 {[%emt 0:02:44] CPLX 2.2} 27. Bxe4 {[%emt 0:00:23] RECAPT} Rc8 {[%emt 0:00:05] BESTDEEP} 28. Rd6 {[%emt 0:02:37] BESTDEEP} Rec7 {[%emt 0:02:52] CPLX 2.1 30 (Kg8-f8) (=11)} 29. b4 {[%emt 0:00:21] CPLX 2.2 43 (Kf2-e3) (=10)} Bc6 {[%emt 0:00:29] CPLX 2.1 2 (a6-a5) (=11)} 30. Ke3 {[%emt 0:05:24] BESTDEEP} a5 {[%emt 0:01:30] CPLX 2.2 35 (Kg8-f8) (=12)} 31. Bxc6 {[%emt 0:02:06] CPLX 2.4} bxc6 $14 {[%emt 0:00:15][%mdl 4096] Endgame KRR-KRR. RECAPT} 32. a3 {[%emt 0:00:42] BESTDEEP} h5 {[%emt 0:04:31] CPLX 2.0 0 (a5xb4) (=11)} 33. Kd4 {[%emt 0:03:34] BESTDEEP} axb4 {[%emt 0:00:56] CPLX 2.2} 34. axb4 {[%emt 0:00:04] RECAPT} Ra7 {[%emt 0:00:20] CPLX 2.0} 35. b5 {[%emt 0:01:23] CPLX 2.0 0 (Kd4-e5) (=8)} cxb5 {[%emt 0:00:06] CPLX 2.3} 36. c6 {[%emt 0:00:08] CPLX 2.3} Kf8 {[%emt 0:02:18] CPLX 2.5 0 (b5-b4) (=9)} 37. Kc5 {[%emt 0:00:10] Strongly threatening Rcd1. CPLX 2.5} Ke7 $2 {[%emt 0:00:09][%mdl 8192] MISSDEEP-Ra7-a8 265 (Ra7-a8) (=17)} (37... Raa8 $1 $11) 38. Rd3 $2 {[%emt 0:04:14] CPLX 2.8 268 (Rc1-d1) (=15)} (38. Rcd1 $18) 38... Rb7 {[%emt 0:02:12] [#] RELBLUND 173 (Ra7-c7) (=22)} (38... Rac7 $11 39. Rd6 (39. Kxb5 Rb8+ 40. Ka6 Rb2 $11) 39... Ke8) 39. Rcd1 $1 $18 {[%emt 0:01:01][%mdl 1024] White has strong compensation. DEEPSTRONG=>BLUNDERREACT} Rcc7 {[%emt 0:00:17] Against Rd7+. BESTDEEP} 40. Rb1 {[%emt 0:00:25] CPLX 3.1} b4 {[%emt 0:00:17] RELBLUND 400 (Rc7-c8) (=32)} (40... Rc8 $16 {is a better chance.}) 41. Rdb3 {[%emt 0:00:08] CPLX 3.2=>BLUNDERREACT} Ra7 {[%emt 0:01:06] And now ...Ra6 would win. BESTDEEP} 42. Kb6 {[%emt 0:01:01] Inhibits Ra6+. CPLX 2.6} Kf6 {[%emt 0:00:49] CPLX 2.9} 43. Rc1 {[%emt 0:01:17] BESTDEEP} e5 {[%emt 0:00:41] CPLX 3.0 11 (g6-g5) (=30)} 44. Rxb4 {[%emt 0:00:15] CPLX 3.2} exf4 {[%emt 0:00:07] CPLX 2.9 41 (Kf6-g7) (=30)} 45. gxf4 {[%emt 0:01:05] [#] Threatens to win with Rcc4. RECAPT} Ke6 {[%emt 0:01:14] CPLX 2.5 0 (Kf6-g7) (=29)} 46. Rcc4 {[%emt 0:00:52] Intending Ra4 and mate. BESTDEEP} f6 {[%emt 0:00:32] MISSDEEP-Ke6-f5 400 (Ke6-f5) (=38)} 47. Ra4 {[%emt 0:00:37] CPLX 2.5=>BLUNDERREACT. White mates.} Rxa4 {[%emt 0:00:32] EASY} 48. Rxa4 {[%emt 0:00:06] KR-KR. RECAPT} Rc8 {[%emt 0:00:32] RELBLUND 0 (Rc7-g7) (=37)} 49. Kb7 {[%emt 0:00:21] CPLX 2.0 0 (c6-c7) (=11)} Rh8 {[%emt 0:00:19] RELBLUND 0 (Rc8-g8) (=36)} 50. c7 {[%emt 0:00:06] EASY} Kf5 {[%emt 0:00:56] RELBLUND 3 (Ke6-d7) (=35)} 51. c8=Q+ {[%emt 0:00:30] CPLX 2.6 0 (c7-c8B) (=11)} Rxc8 {[%emt 0:00:04] LEGAL} 52. Kxc8 {[%emt 0:00:03] RECAPT} h4 {[%emt 0:00:04] RELBLUND 1 (Kf5-e6) (=34)} 53. Kd7 {[%emt 0:00:08] CPLX 2.0} g5 {[%emt 0:00:14] RELBLUND} 54. fxg5 {[%emt 0:00:06] CPLX 2.0} fxg5 {[%emt 0:00:04] RECAPT} 55. Kd6 {[%emt 0:00:07] Weighted Error Value: White=0.12 (very precise) /Black=0.39} 1-0

[Event "ESP-chT Honor Division 2022"]
[Site "Linares"]
[Date "2022.09.20"]
[Round "4.15"]
[White "Del Rio De Angelis, Salvador G."]
[Black "Iturrizaga Bonelli, Eduardo"]
[Result "1/2-1/2"]
[ECO "A40"]
[WhiteElo "2456"]
[BlackElo "2630"]
[Annotator "TA"]
[PlyCount "53"]
[EventDate "2022.09.17"]
[EventType "team-tourn"]
[EventCountry "ESP"]
[SourceTitle "playchess.com"]
[Source "ChessBase"]
[SourceQuality "1"]
[TimeControl "5400+30"]

{[%evp 9,53,22,53,45,47,56,82,57,53,58,95,69,93,77,80,50,52,44,52,64,71,17,20,0,15,12,31,19,47,49,47,51,79,84,94,97,106,0,0,0,103,0,0,0,104,0]} 1. d4 {[%emt 0:00:32]} e6 {[%emt 0:00:26]} 2. c4 {[%emt 0:00:23]} b6 {[%emt 0:00:43]} 3. e4 {[%emt 0:01:20]} Bb7 {[%emt 0:00:10]} 4. Nc3 {[%emt 0:01:10]} Bb4 {[%emt 0:00:13]} 5. Bd3 {[%emt 0:00:13]} Ne7 {[%emt 0:04:53][%cal Oe6e5] CPLX 2.3 31 (f7-f5) (=31)} 6. Nge2 {[%emt 0:02:13] BESTDEEP. A40: Unusual replies to 1 d4.} Nbc6 {[%emt 0:04:30] CPLX 2.3} 7. O-O {[%emt 0:02:36]} O-O {[%emt 0:02:20] CPLX 2.2 26 (Bb4xc3) (=19)} 8. Be3 {[%emt 0:11:00] CPLX 2.2 25 (Nc3-a4) (=8)} f5 {[%emt 0:09:10] BESTDEEP} 9. f3 {[%emt 0:00:32] [#] CPLX 2.4} Ng6 $146 {[%emt 0:03:46] CPLX 2.4 37 (f5xe4) (=19)} ({Predecessor:} 9... f4 10. Nxf4 Nxd4 11. Bxd4 Rxf4 12. Ne2 Rf7 13. f4 Bc5 14. Qd2 a5 15. Rad1 d6 16. Bb1 {0-1 (30) Cramling,P (2459)-Jumabayev,R (2637) Chess.com INT 2021}) 10. a3 {[%emt 0:04:52] CPLX 2.6 26 (e4xf5) (=10)} f4 {[%emt 0:33:16] [#] And now ...Bxc3 would win. CPLX 2.8 24 (Bb4xc3) (=20)} 11. Bf2 {[%emt 0:03:09] CPLX 2.8 16 (a3xb4) (=11)} Be7 {[%emt 0:00:49] CPLX 2.5} 12. e5 {[%emt 0:07:23] CPLX 2.2 30 (b2-b4) (=14)} Bh4 {[%emt 0:02:12] BESTDEEP} 13. Qc2 {[%emt 0:02:51] BESTDEEP} Bxf2+ {[%emt 0:00:31] CPLX 2.6} 14. Rxf2 {[%emt 0:00:06] RECAPT} Nce7 {[%emt 0:00:05] CPLX 2.2 7 (Qd8-g5) (=13)} 15. Be4 {[%emt 0:01:02] RELBLUND 54 (a3-a4) (=15)} (15. a4 $16) 15... Bxe4 $11 {[%emt 0:03:00] CPLX 2.5} 16. Qxe4 {[%emt 0:02:08] RECAPT 20 (Nc3xe4) (=16)} c5 {[%emt 0:11:20] CPLX 2.2 15 (d7-d5) (=12)} 17. Rd1 {[%emt 0:01:07] CPLX 2.5} Rf5 {[%emt 0:06:11] CPLX 2.4 19 (Qd8-c7) (=12)} 18. dxc5 {[%emt 0:03:25] CPLX 2.6} Rc8 {[%emt 0:03:02] CPLX 2.8 28 (b6xc5) (=13)} 19. cxb6 {[%emt 0:01:46] EASY} axb6 {[%emt 0:00:29] RECAPT} 20. Qb7 {[%emt 0:04:21] BESTDEEP} Nxe5 {[%emt 0:02:55] CPLX 2.8 28 (Ng6-f8) (=13)} 21. Nd4 {[%emt 0:01:08] Black must now prevent Re2. CPLX 2.8 0 (Nc3-b5) (=11)} Rf6 {[%emt 0:00:05] [#] CPLX 2.9 10 (Rc8-c7) (=13)} 22. Re2 $1 {[%emt 0:02:12] DEEPSTRONG} Rb8 {[%emt 0:01:13] CPLX 2.9 9 (Rc8-c7) (=13)} 23. Qa7 {[%emt 0:03:40] White is much more active. The black rooks are badly placed. CPLX 3.1 106 (Qb7-e4) (=15)} Ra8 {[%emt 0:00:06] EASY} 24. Qb7 {[%emt 0:00:05] RELBLUND} Rb8 $1 {[%emt 0:00:02] DEEPSTRONG} 25. Qa7 {[%emt 0:00:04] CPLX 3.1 103 (Qb7-e4) (=19)} Ra8 {[%emt 0:01:00] EASY} 26. Qb7 {[%emt 0:00:05] RELBLUND} Rb8 $1 {DEEPSTRONG} 27. Qa7 {Weighted Error Value: White=0.20 (precise) /Black=0.11 (very precise)} ({White should try} 27. Qe4 $16 N7g6 28. Qc2) 1/2-1/2